bitfinex/quotes_ETHUSD_20250426
["timestamp","ask_amount","ask_price","bid_price","bid_amount"]
[1745657804178,5.04236133,1810.0,1809.9,5.43]
[1745657804560,3.40406133,1810.0,1809.9,5.43]
[1745657804760,3.0,1810.0,1809.9,5.43]
[1745657805070,1.567,1810.2,1809.9,5.43]
[1745657805274,8.547,1810.4,1809.9,7.4957]
[1745657805590,3.49489407,1810.3,1809.9,5.43]
[1745657806170,3.0,1810.3,1809.9,5.43]
[1745657806357,3.0,1810.3,1809.9,10.95506012]
[1745657806880,3.0,1810.3,1809.9,5.43]
[1745657807175,8.547,1810.4,1809.9,5.43]
[1745657807176,4.567,1810.4,1809.9,10.95513649]
[1745657807381,3.0,1810.2,1810.0,2.61821365]
[1745657807945,6.429,1810.3,1810.0,2.61821365]
[1745657808139,6.429,1810.3,1810.1,10.95441033]
[1745657808378,3.0,1810.4,1810.1,5.43]
[1745657809062,3.49489407,1810.4,1810.1,5.43]
[1745657809267,1.6217,1810.3,1810.1,5.43]
[1745657811794,3.0,1810.4,1810.1,5.43]
[1745657811949,3.0,1810.2,1810.1,5.43]
[1745657819379,5.0582,1810.2,1810.1,5.43]
[1745657822810,4.5082,1810.2,1810.1,5.43]
[1745657823010,10.9372,1810.2,1810.1,5.43]
[1745657823316,6.429,1810.2,1810.1,5.43]
[1745657823678,9.429,1810.2,1810.1,5.43]
[1745657823975,9.429,1810.2,1810.1,5.973]
[1745657826234,9.429,1810.2,1810.1,5.43]
[1745657826710,10.9372,1810.2,1810.1,5.43]
[1745657827585,9.429,1810.2,1810.1,5.43]
[1745657829037,11.5264,1810.2,1809.6,5.43]
[1745657829185,5.59229407,1809.7,1809.6,5.43]
[1745657829519,3.0,1809.6,1808.9,7.08682723]
[1745657829834,3.0,1809.6,1809.0,5.43]
[1745657830002,3.0,1809.6,1809.0,10.95788321]
[1745657831222,3.0,1809.6,1809.0,16.48557972]
[1745657831535,3.0,1809.6,1809.1,1.5588]
[1745657831737,3.0,1809.6,1809.1,7.08640272]
[1745657832302,3.42075293,1809.6,1809.2,0.70864027]
[1745657832729,3.42075293,1809.6,1809.1,1.5588]
[1745657832921,3.42075293,1809.6,1809.2,5.43]
[1745657833770,0.49489407,1809.5,1809.2,5.43]
[1745657834544,1.6608,1809.4,1809.2,5.43]
[1745657835209,0.49489407,1809.3,1809.2,5.43]
[1745657835908,1.6608,1809.4,1809.2,5.43]
[1745657837403,0.49489407,1809.5,1809.2,5.43]
[1745657837713,3.42075293,1809.6,1809.3,1.6127]
[1745657837912,3.42075293,1809.6,1809.4,5.43]
[1745657839038,3.915647,1809.6,1809.4,5.43]
[1745657839607,1.5393,1809.5,1809.4,5.43]
[1745657840638,5.6347947,1809.5,1809.4,5.43]
[1745657849022,1.5393,1809.5,1809.4,5.43]
[1745657851257,0.42075293,1809.6,1809.4,5.43]
[1745657851423,9.406,1809.5,1809.4,5.43]
[1745657853971,11.0608,1809.5,1809.4,5.43]
[1745657855070,11.6108,1809.5,1809.4,5.43]
[1745657855259,12.86302962,1809.5,1809.4,5.43]
[1745657855577,12.31302962,1809.5,1809.4,5.43]
[1745657855764,11.0608,1809.5,1809.4,5.43]
[1745657857151,9.406,1809.5,1809.4,5.43]
[1745657859275,9.406,1809.5,1809.4,7.0681]
[1745657860280,6.38,1809.7,1809.4,12.59479393]
[1745657860583,3.0,1809.6,1809.5,1.25947939]
[1745657861383,3.0,1809.6,1809.4,7.0681]
[1745657863248,4.5234,1809.6,1809.4,5.43]
[1745657863672,4.94695525,1809.6,1809.4,5.43]
[1745657863871,6.38,1809.7,1809.4,7.0681]
[1745657864180,3.0,1809.6,1809.4,7.77491]
[1745657864386,6.38,1809.7,1809.4,7.77491]
[1745657864677,3.0,1809.6,1809.4,7.77491]
[1745657867866,3.0,1809.6,1809.4,13.30140847]
[1745657868185,3.0,1809.6,1809.5,5.43]
[1745657869088,3.0,1809.6,1809.5,6.207491]
[1745657871095,3.0,1809.6,1809.5,5.43]
[1745657872584,4.6271,1809.6,1809.5,5.43]
[1745657872749,5.1771,1809.6,1809.5,5.43]
[1745657874453,5.1771,1809.6,1809.5,5.16340678]
[1745657875767,0.55,1809.2,1809.0,2.23776997]
[1745657876077,6.87489407,1809.1,1809.0,2.23776997]
[1745657876414,9.87489407,1809.1,1809.0,2.23776997]
[1745657878986,10.28149509,1809.1,1809.0,2.23776997]
[1745657879571,9.78660102,1809.1,1809.0,2.23776997]
[1745657880704,10.82026112,1809.1,1809.0,2.23776997]
[1745657882407,9.78660102,1809.1,1809.0,2.23776997]
[1745657882710,9.38,1809.1,1809.0,2.23776997]
[1745657884523,0.55,1808.9,1808.6,2.23776997]
[1745657884684,1.04489407,1808.9,1808.6,2.23776997]
[1745657885004,1.58882348,1808.9,1808.6,2.23776997]
[1745657886183,4.3944,1808.8,1808.6,2.23776997]
[1745657886386,6.9944,1808.8,1808.6,2.23776997]
[1745657886799,1.04489407,1808.7,1808.6,2.23776997]
[1745657887194,0.55,1808.7,1808.6,2.23776997]
[1745657887511,13.3754,1808.8,1808.6,2.23776997]
[1745657888211,11.981,1808.8,1808.6,2.23776997]
[1745657888507,5.6,1808.8,1808.6,2.23776997]
[1745657888826,5.6,1808.8,1808.7,1.4051]
[1745657890624,5.6,1808.8,1808.7,9.17170283]
[1745657890935,2.6,1808.8,1808.7,10.08887311]
[1745657891432,6.354,1809.2,1808.9,5.5280462]
[1745657891726,3.0,1809.1,1808.8,1.4051]
[1745657892308,6.354,1809.2,1808.8,1.4051]
[1745657892632,3.0,1809.1,1808.8,1.4051]
[1745657894498,3.49489407,1809.1,1808.9,2.23776997]
[1745657894895,2.0326,1809.0,1808.5,2.23776997]
[1745657895114,3.49489407,1808.9,1808.5,2.23776997]
[1745657895319,0.34948941,1808.8,1808.5,2.23776997]
[1745657895527,3.0,1808.6,1808.5,2.23776997]
[1745657897734,1.4826,1809.0,1808.5,2.23776997]
[1745657897910,3.0,1808.8,1808.5,2.23776997]
[1745657898612,3.0,1808.8,1808.5,9.18162484]
[1745657899515,3.0,1808.8,1808.5,3.65246997]
[1745657899939,3.9354,1808.8,1808.5,3.65246997]
[1745657900437,3.9354,1808.8,1808.5,2.23776997]
[1745657900936,4.36034691,1808.8,1808.5,2.23776997]
[1745657902212,0.55,1808.5,1808.2,2.23776997]
[1745657902426,3.0,1808.3,1808.2,2.23776997]
[1745657905621,4.4299,1808.3,1808.2,2.23776997]
[1745657907050,5.0299,1808.3,1808.2,2.23776997]
[1745657907234,3.6,1808.3,1808.2,2.23776997]
[1745657908211,4.00868056,1808.3,1808.2,2.23776997]
[1745657908410,5.04494862,1808.3,1808.2,2.23776997]
[1745657914395,4.00868056,1808.3,1808.2,2.23776997]
[1745657915986,5.41958056,1808.3,1808.2,2.23776997]
[1745657923304,5.96958056,1808.3,1808.2,2.23776997]
[1745657923606,6.46447463,1808.3,1808.2,2.23776997]
[1745657926903,1.4109,1808.2,1808.1,0.1]
[1745657927106,2.05734746,1808.2,1808.1,0.1]
[1745657927311,32.28988746,1808.2,1808.1,0.06590001]
[1745657927482,18.48076946,1808.2,1808.1,0.06590001]
[1745657927912,18.48076946,1808.2,1808.1,1e-08]
[1745657928117,5.60734746,1808.2,1808.1,1e-08]
[1745657929955,5.05734746,1808.2,1808.1,1e-08]
[1745657930341,5.60734746,1808.2,1808.1,1e-08]
[1745657930857,9.97644746,1808.2,1808.1,1e-08]
[1745657931026,1.00868056,1808.3,1808.1,1e-08]
[1745657931234,6.33,1808.2,1808.1,1e-08]
[1745657931475,9.33,1808.2,1808.1,1e-08]
[1745657935677,9.33,1808.2,1808.1,2.23776998]
[1745657942542,11.77149407,1808.2,1808.1,2.23776998]
[1745657942764,13.04951153,1808.2,1808.1,2.23776998]
[1745657943388,4.9856,1808.1,1807.5,3.64176997]
[1745657943595,0.49489407,1807.8,1807.5,3.64176997]
[1745657943739,3.0,1807.6,1807.5,2.23776997]
[1745657944374,3.933,1807.6,1807.5,2.23776997]
[1745657945400,5.39837765,1807.6,1807.5,2.23776997]
[1745657945699,6.83397765,1807.6,1807.5,2.23776997]
[1745657945859,6.83397765,1807.6,1807.5,0.93152408]
[1745657946861,7.10373745,1807.6,1807.5,0.93152408]
[1745657947650,4.90348358,1807.6,1807.5,0.93152408]
[1745657947850,1.90348358,1807.6,1807.5,0.93152408]
[1745657948179,9.75148358,1807.6,1807.5,0.93152408]
[1745657948556,10.24637765,1807.6,1807.5,0.93152408]
[1745657948952,10.79637765,1807.6,1807.5,0.93152408]
[1745657949875,12.23197765,1807.6,1807.5,0.93152408]
[1745657954491,10.79637765,1807.6,1807.5,0.93152408]
[1745657954794,11.90311038,1807.6,1807.5,0.93152408]
[1745657960504,0.42048358,1807.6,1807.5,2.31232408]
[1745657960658,6.72548358,1807.6,1807.5,2.31232408]
[1745657960861,9.305,1807.6,1807.5,2.31232408]
[1745657961061,6.305,1807.6,1807.5,2.31232408]
[1745657961362,9.305,1807.6,1807.5,2.31232408]
[1745657961568,3.0,1807.6,1807.5,2.31232408]
[1745657961994,3.0,1807.6,1807.5,3.0968342]
[1745657962669,3.0,1807.6,1807.5,8.62933765]
[1745657962876,6.73030436,1807.7,1807.5,8.62931719]
[1745657963073,6.73030436,1807.7,1807.6,1.3037]
[1745657963277,3.42530436,1807.7,1807.6,1.3037]
[1745657963493,16.598,1807.8,1807.6,1.3037]
[1745657963797,3.0,1807.7,1807.6,1.3037]
[1745657964766,3.0,1807.7,1807.6,0.77676865]
[1745657965100,3.0,1807.7,1807.6,2.08046865]
[1745657965897,3.0,1807.7,1807.6,1.3037]
[1745657967036,16.598,1807.8,1807.7,5.53189135]
[1745657967217,6.304,1808.2,1807.8,5.53140781]
[1745657967530,3.0,1808.1,1807.9,2.23522408]
[1745657967720,3.0,1808.1,1807.9,7.76648536]
[1745657967924,3.0,1808.1,1807.9,2.23522408]
[1745657968906,2.6,1808.0,1807.9,2.23522408]
[1745657970333,3.20137027,1808.0,1807.9,0.93152408]
[1745657971099,8.57046434,1808.0,1807.9,0.93152408]
[1745657971721,6.20137027,1808.0,1807.9,0.93152408]
[1745657972933,5.6,1808.0,1807.9,0.93152408]
[1745657973501,5.6,1808.0,1807.9,2.15242408]
[1745657975404,2.6,1808.0,1807.9,2.15242408]
[1745657978061,5.6,1808.0,1807.9,0.93152408]
[1745657981157,6.8874,1808.0,1807.9,0.93152408]
[1745657981449,7.66699968,1808.0,1807.9,0.93152408]
[1745657981919,6.37959968,1808.0,1807.9,0.93152408]
[1745657982844,5.6,1808.0,1807.9,0.93152408]
[1745657990558,4.8227,1807.9,1807.6,0.93152408]
[1745657990758,3.0,1807.7,1807.6,0.93152408]
[1745657991237,3.49489407,1807.7,1807.6,0.93152408]
[1745657993278,4.04489407,1807.7,1807.6,0.93152408]
[1745657993566,6.34978348,1807.7,1807.6,0.93152408]
[1745657995675,5.85488941,1807.7,1807.6,0.93152408]
[1745657996053,4.03218941,1807.7,1807.6,0.93152408]
[1745658000781,4.52708348,1807.7,1807.6,0.93152408]
[1745658000944,5.07708348,1807.7,1807.6,0.93152408]
[1745658001467,6.34978348,1807.7,1807.6,0.93152408]
[1745658002258,5.85488941,1807.7,1807.6,0.93152408]
[1745658002782,4.58218941,1807.7,1807.6,0.93152408]
[1745658003174,4.03218941,1807.7,1807.6,0.93152408]
[1745658009405,6.36508348,1807.7,1807.6,0.93152408]
[1745658010104,1.288,1807.6,1807.2,0.93152408]
[1745658010268,1.04489407,1807.5,1807.2,0.93152408]
[1745658013315,3.0,1807.3,1807.2,0.93152408]
[1745658013540,3.0,1807.3,1807.2,2.10162408]
[1745658013717,6.278,1807.4,1807.2,2.10162408]
[1745658013718,6.278,1807.4,1807.2,7.63504594]
[1745658013926,6.278,1807.4,1807.2,8.40831682]
[1745658014094,3.0,1807.3,1807.2,8.40831682]
[1745658015425,3.0,1807.3,1807.2,7.63481223]
[1745658019532,3.0,1807.3,1807.2,2.10162408]
[1745658020095,3.0,1807.3,1807.2,0.93152408]
[1745658023297,3.0,1807.3,1807.2,6.46494594]
[1745658023633,3.0,1807.3,1807.2,7.63504594]
[1745658023806,3.0,1807.3,1807.2,8.96190219]
[1745658024492,2.99723699,1807.3,1807.2,8.96190219]
[1745658026836,6.278,1807.4,1807.3,5.53311569]
[1745658027134,1.2774,1807.9,1807.4,1.1701]
[1745658027451,6.252,1808.2,1807.8,5.53144558]
[1745658027595,6.252,1808.2,1807.9,8.18589121]
[1745658028442,6.252,1808.2,1807.9,8.1858809]
[1745658028803,3.0,1808.1,1807.9,8.1858809]
[1745658029042,6.251,1808.7,1808.2,5.53022606]
[1745658029211,6.251,1808.7,1808.3,7.63145905]
[1745658029412,3.0,1808.6,1808.3,7.63145905]
[1745658030221,6.251,1808.7,1808.4,5.52955639]
[1745658030743,3.0,1808.6,1808.3,7.63145905]
[1745658031034,3.0,1808.6,1808.4,1.26314591]
[1745658031235,3.0,1808.6,1808.4,6.79283306]
[1745658031839,3.0,1808.6,1808.5,5.52944429]
[1745658032355,6.251,1808.7,1808.6,5.52913856]
[1745658032501,2.29251993,1809.0,1808.7,5.52869029]
[1745658032833,1.0519,1809.3,1808.8,6.08123396]
[1745658033136,4.0519,1809.3,1808.9,6.45972256]
[1745658033305,4.0519,1809.3,1808.9,0.93152408]
[1745658034409,4.54679407,1809.3,1808.9,0.93152408]
[1745658039810,4.0519,1809.3,1808.9,0.93152408]
[1745658040005,4.0519,1809.3,1808.9,1.57750653]
[1745658040248,4.0519,1809.3,1808.9,0.93152408]
[1745658041035,0.49489407,1809.2,1808.9,0.93152408]
[1745658041375,1.0195,1809.1,1808.9,0.93152408]
[1745658041666,0.49489407,1809.0,1808.9,0.93152408]
[1745658041842,7.66439407,1809.0,1808.9,0.93152408]
[1745658042048,8.43083348,1809.0,1808.9,0.93152408]
[1745658043531,8.84415921,1809.0,1808.9,0.93152408]
[1745658045944,3.55,1808.9,1808.5,0.93152408]
[1745658046149,2.05049407,1808.6,1808.5,0.93152408]
[1745658046661,5.55554348,1808.6,1808.5,0.93152408]
[1745658055107,0.55,1808.4,1808.0,0.93152408]
[1745658055253,0.49489407,1808.2,1808.0,0.93152408]
[1745658055455,6.71689407,1808.2,1808.0,0.93152408]
[1745658055657,3.0,1808.1,1808.0,0.93152408]
[1745658055856,3.41981713,1808.1,1808.0,0.93152408]
[1745658056378,3.0,1808.1,1808.0,1.43152408]
[1745658056574,3.0,1808.1,1808.0,2.127777]
[1745658059704,3.0,1808.1,1808.0,0.93152408]
[1745658060720,3.41999933,1808.1,1808.0,0.93152408]
[1745658061072,3.0,1808.1,1808.0,0.93152408]
[1745658064873,3.0,1808.1,1808.0,6.46249753]
[1745658065470,3.0,1808.1,1808.0,0.93152408]
[1745658065673,3.0,1808.1,1808.0,1.627784]
[1745658066071,5.6,1808.1,1808.0,1.627784]
[1745658066310,7.1495,1808.1,1808.0,0.93152408]
[1745658066511,7.1495,1808.1,1807.1,0.1]
[1745658066512,0.55,1807.9,1807.5,0.93152408]
[1745658066756,1.49439407,1807.8,1807.5,0.93152408]
[1745658067015,0.9995,1807.8,1807.5,0.93152408]
[1745658067175,0.9995,1807.8,1807.5,1.5779414]
[1745658067511,1.49439407,1808.0,1807.5,1.42282408]
[1745658067814,6.15,1808.1,1807.5,1.42282408]
[1745658067815,0.49489407,1807.8,1807.5,0.93152408]
[1745658067982,3.0,1807.6,1807.5,0.93152408]
[1745658070273,1.0183,1807.5,1807.1,0.1]
[1745658070506,2.06319407,1807.2,1806.8,0.93152408]
[1745658070684,1.0183,1806.9,1806.4,0.4913]
[1745658070970,1.04489407,1806.8,1806.2,1.42282408]
[1745658071899,1.51319407,1806.9,1806.2,6.95928399]
[1745658072097,1.51319407,1806.9,1806.2,7.66524278]
[1745658072412,0.55,1806.8,1806.2,1.42282408]
[1745658072575,0.49489407,1806.7,1806.2,1.42282408]
[1745658072776,3.0,1806.5,1806.2,1.42282408]
[1745658073280,2.6,1806.4,1806.2,1.42282408]
[1745658073708,3.0,1806.5,1806.2,0.92282408]
[1745658073889,3.0,1806.5,1806.2,0.43152408]
[1745658073890,4.51319407,1806.5,1806.2,0.43152408]
[1745658074334,4.0183,1806.5,1806.2,0.43152408]
[1745658074518,0.55,1806.4,1806.2,0.43152408]
[1745658074711,1.04489407,1806.4,1806.2,0.43152408]
[1745658076112,1.55121348,1806.4,1806.2,0.43152408]
[1745658076521,1.05631941,1806.4,1806.2,0.43152408]
[1745658076826,3.0,1806.5,1806.2,0.43152408]
[1745658077703,1.4327288,1806.7,1806.2,5.96771648]
[1745658077903,6.6154288,1806.7,1806.5,0.4913]
[1745658078472,5.6,1806.6,1806.5,6.02686601]
[1745658078623,2.6,1806.6,1806.5,7.61464017]
[1745658078938,3.0,1806.8,1806.5,7.61464017]
[1745658079139,6.201,1806.9,1806.6,5.53522818]
[1745658079645,3.0,1806.8,1806.5,7.6145077]
[1745658079944,3.0,1806.8,1806.5,2.07907416]
[1745658080242,3.0,1806.8,1806.5,0.43152408]
[1745658081836,3.0,1806.8,1806.2,0.43152408]
[1745658081837,0.55,1806.6,1806.2,0.43152408]
[1745658082150,1.0183,1806.3,1806.2,0.43152408]
[1745658082345,10.7703,1806.3,1806.2,0.43152408]
[1745658082526,11.95181941,1806.3,1806.2,0.2641862]
[1745658083351,5.19981941,1806.3,1806.2,0.2641862]
[1745658083510,10.2203,1806.3,1806.2,0.2641862]
[1745658084359,10.63880731,1806.3,1806.2,0.2641862]
[1745658084563,13.63709364,1806.3,1806.2,0.2641862]
[1745658085475,4.6226,1806.2,1806.1,0.1]
[1745658086679,7.1683,1806.2,1806.1,0.1]
[1745658086850,8.79200936,1806.2,1806.1,0.1]
[1745658087560,6.24630936,1806.2,1806.1,0.1]
[1745658087756,9.77113536,1806.2,1806.1,0.1]
[1745658088075,8.31837136,1806.2,1806.1,0.1]
[1745658088276,10.91837136,1806.2,1806.1,0.1]
[1745658089400,8.84630936,1806.2,1806.1,0.1]
[1745658089764,11.02990236,1806.2,1806.1,0.1]
[1745658089967,8.78810936,1806.2,1806.1,0.1]
[1745658090308,10.89206436,1806.2,1806.1,0.1]
[1745658093611,8.23810936,1806.2,1806.1,0.1]
[1745658094093,7.22370936,1806.2,1806.1,0.1]
[1745658094292,2.6,1806.2,1806.1,0.1]
[1745658094501,8.805,1806.2,1806.1,0.1]
[1745658094807,11.805,1806.2,1806.1,0.1]
[1745658095114,5.6,1806.2,1806.1,0.1]
[1745658095298,11.805,1806.2,1806.1,0.1]
[1745658096405,2.6,1806.2,1806.1,1.41858729]
[1745658096678,6.205,1807.1,1806.5,5.53544073]
[1745658096883,6.205,1807.1,1806.6,6.6207]
[1745658097080,1.0273,1807.5,1807.0,0.4907]
[1745658097286,16.616,1807.6,1807.1,11.66355495]
[1745658097287,22.821,1807.6,1807.1,11.66355495]
[1745658097509,22.821,1807.6,1807.1,7.89881705]
[1745658097681,22.821,1807.6,1807.1,6.13]
[1745658098104,3.0,1807.5,1807.1,6.13]
[1745658098292,22.821,1807.6,1807.1,6.13]
[1745658098488,23.23315314,1807.6,1807.1,6.13]
[1745658098725,3.0,1807.5,1807.1,6.13]
[1745658098885,2.62331531,1807.5,1807.1,6.13]
[1745658099087,3.0,1807.4,1807.1,6.13]
[1745658099425,0.55,1807.3,1807.1,6.13]
[1745658099979,5.44828633,1807.2,1807.1,6.13]
[1745658100509,0.55,1807.1,1806.4,6.6207]
[1745658100819,3.0,1806.9,1806.4,7.83637239]
[1745658101019,0.55,1806.8,1806.4,6.6207]
[1745658102415,0.55,1806.6,1806.4,6.13]
[1745658102622,9.204,1806.5,1806.4,6.13]
[1745658104287,9.61665131,1806.5,1806.4,6.13]
[1745658106140,6.204,1806.5,1806.4,6.13]
[1745658106346,6.204,1806.5,1806.4,12.76957245]
[1745658106527,3.0,1806.5,1806.4,12.76957245]
[1745658109530,3.0,1806.5,1806.4,7.2337]
[1745658109725,3.0,1806.5,1806.4,12.76957245]
[1745658109931,4.6,1806.5,1806.4,7.2337]
[1745658110132,4.6,1806.5,1806.4,6.6207]
[1745658111570,4.6,1806.5,1806.4,12.15657245]
[1745658112641,2.44828633,1807.4,1806.4,12.15657245]
[1745658112642,1.1046,1807.8,1806.6,6.13]
[1745658112839,1.1046,1808.0,1807.4,5.53264544]
[1745658113079,1.1046,1808.0,1807.5,6.13]
[1745658114074,1.51115725,1808.0,1807.5,6.13]
[1745658114275,6.18,1807.9,1807.5,6.13]
[1745658114768,1.1046,1808.0,1807.5,6.13]
[1745658115082,6.53528863,1808.0,1807.6,6.13]
[1745658115379,4.1046,1807.9,1807.6,6.13]
[1745658115545,6.55288633,1807.9,1807.6,6.13]
[1745658116635,0.55,1807.8,1807.6,6.13]
[1745658119854,0.55,1807.8,1807.2,6.6207]
[1745658120056,1.26028863,1807.8,1807.2,6.13]
[1745658120271,5.44828633,1807.7,1807.2,6.13]
[1745658120568,0.55,1807.4,1807.2,6.13]
[1745658120782,9.178,1807.3,1807.2,6.13]
[1745658123055,9.728,1807.3,1807.2,6.13]
[1745658123365,0.55,1807.1,1806.9,6.13]
[1745658123569,1.5901,1807.1,1806.9,6.13]
[1745658129502,3.0,1807.2,1806.9,6.13]
[1745658129687,7.2788,1807.3,1806.9,6.13]
[1745658130201,3.0,1807.2,1806.9,6.13]
[1745658130600,0.55,1807.1,1806.9,6.13]
[1745658131098,5.44828633,1807.0,1806.9,6.13]
[1745658131272,5.99828633,1807.0,1806.9,6.13]
[1745658131999,12.17628633,1807.0,1806.9,6.13]
[1745658132862,15.87025633,1807.0,1806.9,6.13]
[1745658133178,0.55,1806.7,1806.3,6.13]
[1745658133498,4.5981,1806.4,1806.3,6.13]
[1745658133805,10.7771,1806.4,1806.3,6.13]
[1745658133975,12.09963863,1806.4,1806.3,6.13]
[1745658134357,12.09963863,1806.4,1806.1,0.1]
[1745658134572,3.55,1806.2,1806.1,0.1]
[1745658134773,0.55,1806.2,1806.1,0.1]
[1745658136606,6.9184,1806.2,1806.1,0.1]
[1745658136922,7.55946369,1806.2,1806.1,0.1]
[1745658137080,5.21106369,1806.2,1806.1,0.1]
[1745658137282,8.02617169,1806.2,1806.1,0.1]
[1745658137481,5.21106369,1806.2,1806.1,0.1]
[1745658137682,8.17117169,1806.2,1806.1,0.1]
[1745658137980,5.21106369,1806.2,1806.1,0.1]
[1745658138420,1.0481,1806.4,1806.1,0.1]
[1745658138623,6.158,1806.3,1806.1,0.1]
[1745658138916,3.0,1806.3,1806.1,0.1]
[1745658139105,6.158,1806.4,1806.1,0.1]
[1745658139606,3.0,1806.3,1806.1,0.1]
[1745658140217,6.159,1806.9,1806.6,5.53525227]
[1745658140423,6.159,1806.9,1806.7,6.6638]
[1745658140626,3.0,1806.8,1806.7,6.6638]
[1745658141520,6.159,1806.9,1806.7,6.6638]
[1745658141729,3.0,1806.8,1806.7,6.13]
[1745658145324,4.75185967,1806.8,1806.7,6.13]
[1745658147436,4.20185967,1806.8,1806.7,6.13]
[1745658147637,3.0,1806.8,1806.7,6.13]
[1745658148411,3.0,1806.8,1806.3,6.13]
[1745658148744,3.55,1806.5,1806.3,6.13]
[1745658148910,9.158,1806.4,1806.3,6.13]
[1745658152032,6.158,1806.4,1806.3,6.7007]
[1745658152358,9.158,1806.4,1806.3,7.37077]
[1745658152556,9.158,1806.4,1806.3,6.7007]
[1745658154270,0.55,1806.3,1806.1,0.1]
[1745658154468,0.55,1806.0,1805.7,6.5409827]
[1745658154679,3.0,1805.8,1805.7,6.5409827]
[1745658155653,3.55,1805.8,1805.7,6.5409827]
[1745658156171,4.5849,1805.8,1805.7,6.5409827]
[1745658157286,4.99782442,1805.8,1805.7,6.5409827]
[1745658158289,4.99782442,1805.8,1805.7,0.4109827]
[1745658158501,8.6973365,1805.8,1805.7,0.4109827]
[1745658160604,8.6973365,1805.8,1805.7,0.08257771]
[1745658161423,6.3582355,1805.8,1805.7,0.08257771]
[1745658164092,36.6622115,1805.8,1805.7,0.08257771]
[1745658164290,28.8624815,1805.8,1805.7,0.08257771]
[1745658164494,8.4934355,1805.8,1805.7,0.08257771]
[1745658167797,14.03114731,1805.8,1805.7,0.08257771]
[1745658168128,8.4934355,1805.8,1805.7,0.08257771]
[1745658169032,6.3582355,1805.8,1805.7,0.08257771]
[1745658169419,34.4904125,1805.8,1805.7,0.08257771]
[1745658169625,33.8344125,1805.8,1805.7,0.08257771]
[1745658169842,39.6634125,1805.8,1805.7,0.08257771]
[1745658170143,33.8344125,1805.8,1805.7,0.08257771]
[1745658170438,39.37212431,1805.8,1805.7,0.08257771]
[1745658170643,55.99412431,1805.8,1805.7,0.08257771]
[1745658171915,32.5960505,1805.8,1805.7,0.08257771]
[1745658172646,3.0,1805.3,1805.1,0.1]
[1745658172802,3.55,1805.1,1804.4,6.7007]
[1745658172999,3.55,1804.9,1804.4,6.7007]
[1745658173202,0.55,1804.9,1804.4,6.7007]
[1745658173444,5.44828633,1805.1,1804.4,6.7007]
[1745658173445,0.55,1805.0,1804.4,6.7007]
[1745658173641,2.44828633,1804.9,1804.4,6.7007]
[1745658174632,0.55,1804.8,1804.4,6.7007]
[1745658174832,6.141,1804.7,1804.4,6.7007]
[1745658175029,3.0,1804.6,1804.4,6.7007]
[1745658175212,0.59982863,1805.0,1804.5,5.5417013]
[1745658175548,3.0,1804.8,1804.7,0.5707]
[1745658176240,3.40861173,1804.8,1804.7,0.5707]
[1745658178459,3.95861173,1804.8,1804.5,0.5707]
[1745658178829,3.40861173,1804.8,1804.5,6.7007]
[1745658180354,6.142,1804.9,1804.7,0.5707]
[1745658180555,3.0,1804.8,1804.7,0.5707]
[1745658181752,3.0,1804.8,1804.7,6.7007]
[1745658183160,3.0,1804.8,1804.7,6.69370358]
[1745658185085,3.0,1804.8,1804.7,12.9041611]
[1745658185373,6.142,1804.9,1804.8,5.54078014]
[1745658185563,6.55668373,1805.3,1804.9,5.54028582]
[1745658185760,6.142,1805.3,1805.0,6.13]
[1745658186173,6.142,1805.3,1805.1,0.5712]
[1745658186373,6.142,1805.3,1805.1,7.33504294]
[1745658186582,3.0,1805.2,1805.1,1.79532961]
[1745658186888,19.05011108,1805.8,1805.1,12.89383459]
[1745658186889,16.622,1805.8,1805.1,12.89383459]
[1745658187041,22.764,1805.8,1805.2,12.24058699]
[1745658187240,3.0,1805.7,1805.3,1.2240587]
[1745658187443,3.41101128,1805.7,1805.3,1.2240587]
[1745658188379,3.41101128,1805.7,1805.2,6.7012]
[1745658189737,0.55,1805.6,1805.2,6.7012]
[1745658189943,3.0,1805.5,1805.2,6.7012]
[1745658190379,4.0521,1805.5,1805.2,6.13]
[1745658190674,3.55,1805.3,1805.2,6.13]
[1745658190838,9.691,1805.3,1805.2,6.13]
[1745658191066,9.141,1805.3,1805.2,6.13]
[1745658191887,2.01311128,1805.7,1805.2,6.7012]
[1745658191888,3.0,1805.4,1805.2,6.7012]
[1745658192086,6.141,1805.5,1805.2,1.1842]
[1745658192289,3.0,1805.4,1805.2,1.1842]
[1745658192615,3.0,1805.4,1805.3,6.13]
[1745658192797,3.0,1805.4,1805.3,12.95462044]
[1745658193004,9.55201128,1805.7,1805.3,12.95462044]
[1745658193205,9.141,1805.7,1805.4,0.5712]
[1745658193400,6.141,1805.7,1805.5,6.13]
[1745658193600,6.141,1805.7,1805.6,5.53832521]
[1745658193811,6.141,1805.7,1805.6,8.42188308]
[1745658194110,9.141,1805.7,1805.6,8.42188308]
[1745658194753,6.141,1805.7,1805.6,8.42188308]
[1745658194924,0.55,1805.5,1805.3,6.13]
[1745658195080,2.99828633,1805.4,1805.3,6.13]
[1745658196115,1.6198,1805.4,1805.3,6.13]
[1745658196486,4.06808633,1805.4,1805.3,6.13]
[1745658196688,4.47489496,1805.4,1805.3,6.13]
[1745658196906,4.88386951,1805.4,1805.3,6.13]
[1745658199106,7.88386951,1805.4,1805.3,5.069962]
[1745658200039,6.93678318,1805.4,1805.3,5.069962]
[1745658200207,6.52997455,1805.4,1805.3,5.069962]